Cogmind - Beta 17 @@@ ROGUE MODE // 2026.07.15 @ 23:20:47 Player: aperiodic Result: Destroyed by Autobeam Turret with Autobeam Performance ------------- Evolutions (0) 0 Regions Visited (2) 400 Robots Destroyed (20) 100 Value Destroyed (535) 535 Prototype IDs (3) 60 Alien Tech Used (0) 0 Bonus (0) 0 TOTAL SCORE: 1095 Bonus ------- None Cogmind --------- Core Integrity 0/250 Matter 300/300 Energy 170/170 System Corruption 0% Temperature Cool (18) Movement Rolling (95) Ox1 Location -10/Subcaves Parts ------- > --- POWER (1) -------- Makeshift Power Source > --- PROPULSION (2) --- Wheel > --- UTILITY (2) ------ Disposable Heat Sink Small Storage Unit > --- WEAPON (2) ------- Subdweller Laser Subdweller Machine Gun > --- INVENTORY (8) ---- Wheel Medium Laser Subdweller Laser Assault Rifle Assault Rifle Battle Rifle Grenade Launcher Plasma Cutter Peak State ------------ > --- POWER ------------ Makeshift Power Source > --- PROPULSION ------- Wheel Compact Wheel > --- UTILITY ---------- Disposable Heat Sink Small Storage Unit > --- WEAPON ----------- Subdweller Laser Subdweller Machine Gun > --- INVENTORY -------- Wheel Medium Laser Subdweller Laser Assault Rifle Assault Rifle Battle Rifle Grenade Launcher Plasma Cutter [Rating: 14] Favorites ----------- Power Ion Engine Engine Ion Engine Power Core Light Nuclear Core Propulsion Light Treads Treads Light Treads Wheel Compact Wheel Utility Seismic Detector Device Seismic Detector Storage High-capacity Storage Unit Protection Scrap Shield Weapon Assault Rifle Energy Gun Small Laser Energy Cannon Subdweller Beam Cannon Ballistic Gun Assault Rifle Special Weapon Plasma Cutter Build | -11 -10 -10 ------- Run | Yrd Mat Sub Slots Evolved . | . . . Power . | . . . Propulsion . | . . . Utility . | . . . Weapon . | . . . Parts Attached 29 | 8 7 14 Power 4 | 1 1 2 Engine 3 | 1 1 1 Core 1 | . . 1 Reactor . | . . . Propulsion 8 | 2 4 2 Treads 2 | . 2 . Leg . | . . . Wheel 6 | 2 2 2 Hover . | . . . Flight . | . . . Utility 5 | 2 1 2 Device 2 | 1 . 1 Storage 2 | 1 1 . Processor . | . . . Hackware . | . . . Protection 1 | . . 1 Artifact . | . . . Weapon 12 | 3 1 8 Energy Gun 4 | 1 . 3 Energy Cannon 1 | . . 1 Ballistic Gun 6 | 2 1 3 Ballistic Cannon . | . . . Launcher . | . . . Special Weapon 1 | . . 1 Impact Weapon . | . . . Slashing Weapon . | . . . Piercing Weapon . | . . . Special Melee Weapon . | . . . Unidentified Prototypes . | . . . Parts Lost 8 | . 1 7 Power . | . . . Propulsion 4 | . 1 3 Utility 2 | . . 2 Weapon 2 | . . 2 Highest Loss Streak 4 | . 1 4 To Critical Strikes . | . . . Average Backups 9 | 4 11 6 Power . | . 1 . Propulsion 2 | 2 4 . Utility 1 | . 2 . Weapon 3 | . 2 4 Tool/Special . | . . . Unused Backups 8 | . . 8 Power 1 | . . 1 Propulsion . | . . . Utility 3 | . . 3 Weapon 4 | . . 4 Tool/Special . | . . . Average Slot Usage (%) 97 | . 99 95 Engine 8 | . 14 3 Core 5 | . . 10 Treads 9 | . 17 1 Wheel 17 | . 9 26 Device 12 | . 14 11 Storage 13 | . 14 11 Energy Gun 16 | . 14 18 Ballistic Gun 11 | . 14 8 Peak Build Rating 14 | 7 9 14 Average Rating 9 | 5 7 11 On Entrance 5 | . 7 9 Avg Prop Armor Cover (%) . | . . . Naked Turns . | . . . Heaviest Build 49 | 14 49 49 Greatest Support 40 | 26 40 40 Greatest Overweight (x) 3 | 2 3 1 Average Overweight (x) . | . 1 . Largest Inventory Capacity 20 | 8 20 20 Average Capacity 13 | 7 19 8 Most Carried 17 | 8 17 17 Average Carried 9 | 4 11 6 Final Capacity 20 | 8 20 8 Final Carried 17 | 8 17 8 Class Distribution -------------------- 58% | Mutant 41% | Scavenger-Mutant Dominant Class ---------------- Mutant | -10/Materials Scavenger-Mutant | -10/Subcaves Resources | -11 -10 -10 ----------- Run | Yrd Mat Sub Matter Collected 792 | 282 228 282 Remotely . | . . . Salvage Created 688 | 82 293 313 Parts 45 | 7 21 17 Haulers Intercepted . | . . . Recyclers Shooed 2 | . 2 . Parts Field Recycled . | . . . Retrieved Matter . | . . . Parts Self-Destructed 15 | . . 15 Prevented . | . . . Parts Restored . | . . . Kills | -11 -10 -10 ------- Run | Yrd Mat Sub Combat Hostiles Destroyed 15 | . 7 8 Guns 14 | . 7 7 Cannons 1 | . . 1 Classes Destroyed 8 | 2 5 1 Worker 1 | . 1 . Tunneler 1 | 1 . . Recycler 1 | 1 . . Mechanic 1 | . 1 . Watcher 1 | . 1 . Swarmer 4 | . 3 1 Grunt 4 | . 4 . Subdweller 7 | . . 7 Best Kill Streak 3 | 2 3 3 Combat Bots Only 3 | . 3 3 Max Kills in Single Turn 2 | 1 2 1 Gunslinging . | . . . Exploded . | . . . Melee . | . . . Uniques/NPCs Destroyed . | . . . Combat | -11 -10 -10 -------- Run | Yrd Mat Sub Hostile Shots Fired 128 | . 39 89 Missed 42 | . 10 32 Hits 86 | . 29 57 Projectile 86 | . 29 57 Critical Strikes 1 | . . 1 Damage Taken 1342 | . 426 916 Core 254 | . 51 203 Absorbed by Shields . | . . . Core Remaining (%) 100 | 100 . . Volleys Fired 104 | 3 41 60 Largest 2 | 2 2 2 Hottest 130 | 40 60 130 Shots Fired 173 | 6 81 86 Gun 161 | 6 81 74 Cannon 10 | . . 10 Launcher . | . . . Special 2 | . . 2 Kinetic 78 | 6 41 31 Thermal 95 | . 40 55 Explosive . | . . . Electromagnetic . | . . . Robot Hit Streak 13 | 5 12 13 Robot Miss Streak 4 | . 4 4 Penetration Max . | . . . Secondary Targets 1 | . . 1 Max Gunslinging Chain 1 | . . 1 Shots Hit Robots 102 | 5 55 42 Core Hits 33 | 3 17 13 Critical Kills 1 | . 1 . Critical Parts Destroyed . | . . . Critical Strikes 2 | . 1 1 Burn 1 | . . 1 Destroy 1 | . 1 . Melee Attacks . | . . . Impact . | . . . Slashing . | . . . Piercing . | . . . Sneak Attacks . | . . . Combat Hostiles . | . . . Follow-up Attacks . | . . . Damage Inflicted 1361 | 54 659 648 Guns 1254 | 54 659 541 Cannons 107 | . . 107 Explosions . | . . . Melee . | . . . Ramming . | . . . Kinetic 691 | 54 343 294 Thermal 670 | . 316 354 Explosive . | . . . Electromagnetic . | . . . Impact . | . . . Slashing . | . . . Piercing . | . . . Highest Corruption . | . . . Average Corruption . | . . . Corruption Purged . | . . . Corruption Blocked . | . . . Overload Shots . | . . . Overflow Damage 12 | . 12 . Projectiles . | . . . Explosions 12 | . 12 . Melee . | . . . Knockbacks . | . . . Impact . | . . . Kinetic . | . . . Secondary . | . . . Self-Inflicted Damage 99 | . 99 . Shots 1 | . 1 . Rammed . | . . . Targets Rammed . | . . . Kicked . | . . . Crushed . | . . . Highest Temperature 105 | . 54 105 Average Temperature 32 | . 24 43 Received Heat Transfer 387 | . 135 252 Siege Activations . | . . . Martial Activations . | . . . Shielding Activations . | . . . Robots Disrupted . | . . . Combat Hostiles . | . . . Robots Corrupted . | . . . Combat Hostiles . | . . . Parts Fried . | . . . Impact Corruptions . | . . . Robots Melted . | . . . Combat Hostiles . | . . . Parts Melted 2 | . . 2 Heat Transferred 1418 | . 725 693 Parts Sabotaged . | . . . Parts Stolen . | . . . Parts Stripped . | . . . Power Chain Reactions . | . . . Alert | -11 -10 -10 ------- Run | Yrd Mat Sub Maximum Alert Level . | . . . Low Security (%) 100 | 100 100 . Level 1 . | . . . Level 2 . | . . . Level 3 . | . . . Level 4 . | . . . Level 5 . | . . . High Security . | . . . Max Security . | . . . Peak Influence 115 | 5 115 . Initial . | . . . Average 35 | 1 37 . Influence Increases 503 | 10 383 110 Destroy 0b10 Robot/C 160 | . 140 20 Destroy 0b10 Robot/NC 25 | 10 15 . Destroy Leader 32 | . 32 . Successful Hack 63 | . 63 . Select Force Hacks 30 | . 30 . Disable Machine 15 | . 15 . Destroy Structure 28 | . 28 . Lose Combat Pursuer 150 | . 60 90 Influence Decreases 498 | 10 333 155 Entered New Map 25 | . . 25 Time Decay 423 | 10 323 90 Lost Part 50 | . 10 40 Squads Dispatched 1 | . 1 . Investigation 1 | . 1 . Extermination . | . . . Reinforcement . | . . . Assault . | . . . Garrison . | . . . Intercept . | . . . Searches Triggered . | . . . Construction Impeded . | . . . Haulers Reinforced . | . . . Active Scanning Responses . | . . . Cargo Convoy Interrupts . | . . . Stealth | -11 -10 -10 --------- Run | Yrd Mat Sub Distress Signals 1 | . 1 . Communications Jammed . | . . . Distress Signals . | . . . Times Spotted 31 | . 17 14 Peak Tracking Total 6 | . 4 6 Tactical Retreats 7 | . 4 3 Traps | -11 -10 -10 ------- Run | Yrd Mat Sub Traps Triggered . | . . . Indirectly . | . . . Trap Hack Attempts . | . . . Triggered . | . . . Disarmed . | . . . Reprogrammed . | . . . Reused . | . . . Traps Extracted . | . . . Installed . | . . . Triggered . | . . . Machines | -11 -10 -10 ---------- Run | Yrd Mat Sub Machines Disabled 1 | . 1 . Max in Single Turn 1 | . 1 . Machines Repaired . | . . . Machines Dismantled . | . . . Machines Sabotaged . | . . . Overloaded Fab Kills . | . . . Hacking | -11 -10 -10 --------- Run | Yrd Mat Sub Machines Accessed 8 | . 8 . Terminals 7 | . 7 . Fabricators . | . . . Repair Stations . | . . . Recycling Units 1 | . 1 . Scanalyzers . | . . . Garrison Access . | . . . Total Hacks 27 | . 27 . Successful 12 | . 12 . Failed 15 | . 15 . Catastrophic 2 | . 2 . Database Lockouts . | . . . Manual 24 | . 24 . Terminals 26 | . 26 . Fabricators . | . . . Repair Stations . | . . . Recycling Units 1 | . 1 . Scanalyzers . | . . . Garrison Access . | . . . Terminal Hacks 5 | . 5 . Part Schematic 1 | . 1 . Robot Analysis 1 | . 1 . Prototype ID Bank 1 | . 1 . Terminal Index 1 | . 1 . Locate Traps 1 | . 1 . Fabricator Hacks . | . . . Repair Station Hacks . | . . . Recycling Unit Hacks . | . . . Scanalyzer . | . . . Garrison Access Hacks . | . . . Unauthorized Hacks 7 | . 7 . Terminals 6 | . 6 . Operators 1 | . 1 . Skim 5 | . 5 . Fabricators . | . . . Repair Stations . | . . . Recycling Units 1 | . 1 . Tunnel 1 | . 1 . Scanalyzers . | . . . Garrison Access . | . . . Data Cores Recovered . | . . . Used . | . . . Hacking Detections 7 | . 7 . Full Trace Events . | . . . Feedback Events . | . . . Feedback Blocked . | . . . Robot Schematics Acquired . | . . . Robots Built . | . . . Authchips . | . . . Time . | . . . Total Robot Build Rating . | . . . Part Schematics Acquired 1 | . 1 . Parts Built . | . . . Authchips . | . . . Time . | . . . Total Part Build Rating . | . . . Part Studies Acquired . | . . . Parts Repaired . | . . . Time . | . . . Parts Recycled . | . . . Recycled Matter . | . . . Retrieved Matter . | . . . Retrieved Components . | . . . Parts Scanalyzed . | . . . Part Schematics Acquired . | . . . Parts Damaged . | . . . Bothacking | -11 -10 -10 ------------ Run | Yrd Mat Sub Used RIF Installer . | . . . Robots Hacked . | . . . Non-combat . | . . . Combat . | . . . Robot Hacks Applied . | . . . Relay Couplers Released . | . . . Fabnet Peak Effective % . | . . . Robots Rewired . | . . . Allies Hacked . | . . . Hacks Repelled . | . . . Allies | -11 -10 -10 -------- Run | Yrd Mat Sub Total Allies . | . . . Largest Group . | . . . Highest-Rated Group . | . . . Highest-Rated Ally . | . . . Total Orders . | . . . Ally Attacks . | . . . Total Damage . | . . . Kills . | . . . Allies Corrupted . | . . . Allies Melted . | . . . Intel | -11 -10 -10 ------- Run | Yrd Mat Sub Active Infowar (turns) 1393 | 16 1340 37 Seismic 1393 | 16 1340 37 Robot Analysis Total 1 | . 1 . Derelict Logs Recovered . | . . . Drone Launches . | . . . Drone Recoveries . | . . . Exploration | -11 -10 -10 ------------- Run | Yrd Mat Sub Turns Passed 2668 | 85 1340 1243 Spaces Moved 1570 | 61 562 947 Core 9 | 9 . . Treads 195 | . 186 9 Legs . | . . . Wheels 1366 | 52 376 938 Hover . | . . . Flight . | . . . Fastest Speed 50 | 50 90 90 Average Speed 113 | 86 151 92 Slowest Speed 240 | 150 240 240 Overloaded Moves . | . . . Propulsion Burnouts . | . . . Robots Hopped . | . . . Potential Cave-ins . | . . . Cave-ins Triggered . | . . . Exploration Rate (%) 39 | 4 70 45 Regions Visited 2 Branch Regions 1 Pre-discovered Areas 1 | . 1 . Known Exits Taken 1 | . 1 . Unknown Exits Taken 1 | 1 . . Scrap Searched . | . . . Spaces Dug . | . . . Terrain Destroyed 28 | . 28 . Melee . | . . . Projectile . | . . . AOE 28 | . 28 . Terrain Rammed . | . . . Walls Destroyed . | . . . Machines Disabled . | . . . Actions | -11 -10 -10 --------- Run | Yrd Mat Sub Total 2277 | 83 969 1225 Wait 527 | 4 347 176 Move 1568 | 60 561 947 Hop . | . . . Pick Up 24 | 8 8 8 Fast Attach 14 | 7 . 7 Attach 3 | . 1 2 Detach . | . . . Swap 23 | 1 10 12 Drop 13 | . 1 12 Fire 104 | 3 41 60 Melee . | . . . Ram . | . . . Kick . | . . . Crush . | . . . Escape Stasis . | . . . Rewire . | . . . Trap . | . . . Miscellaneous 1 | . . 1 Route ------- -11/Scrapyard -10/Materials (discovered 5 exits: *Mat x3 / *Min / *Sub) -10/Subcaves (discovered 1 exit: [*Mat]) History --------- Turn | Location | Event 29 | -11/Scrapyard | Discovered new exit (range 14) 86 | -11/Scrapyard | Entered Materials 211 | -10/Materials | Discovered new exit (range 8) 312 | -10/Materials | Build established: Mutant 472 | -10/Materials | Learned Storage garrison access intel 535 | -10/Materials | Identified exit to Subcaves 590 | -10/Materials | Learned 2 Mines zone layouts 636 | -10/Materials | Learned 2 Mines zone layouts 673 | -10/Materials | Loaded intel: 1 repair station location 699 | -10/Materials | Identified exit to Materials 699 | -10/Materials | Identified exit to Mines 786 | -10/Materials | Learned Storage trap positions 1426 | -10/Materials | Entered Subcaves 1512 | -10/Subcaves | Lost 4 parts (2n1u1w) 1580 | -10/Subcaves | Core integrity fell below 50% 1705 | -10/Subcaves | Discovered new exit (range 13) 1916 | -10/Subcaves | Core integrity fell below 20% 1953 | -10/Subcaves | Build established: Scavenger-Mutant 2126 | -10/Subcaves | A swath of the cavern ceiling suddenly collapsed 2413 | -10/Subcaves | Shifting Twisted Machinery released Sub. Machine Gun 2437 | -10/Subcaves | Shifting Twisted Machinery released Mak. Power Source 2669 | -10/Subcaves | Destroyed by Autobeam Turret with Autobeam Last Messages --------------- 01943_ Subatomizers dissect the Disposable Heat Sink. 02126_ Multitool crushed. A swath of the cavern ceiling suddenly collapses. 02170_ 16-RRO(R): "LEAVESUB!" 02179_ Acquired 10 matter. 02223_ Acquired Sub. Laser. 02227_ Acquired Battle Rifle. 02264_ DR-7JR(u) tweaks Twisted Machinery. 02266_ DR-7JR(u) builds Twisted Machinery. Sub. Machine Gun falls loose from the Twisted Machinery. Mak. Power Source falls loose from the Twisted Machinery. 02442_ Dropped Lgt. Nuclear Core. 02450_ S-10 Pest destroyed. 02489_ J5-2O6(R) destroyed. 02557_ Acquired 22 matter. 02669_ Com. Wheel destroyed. Map ----- +----------------------------------------------------+ | ???????????????????????????????# #??# # | | ?????????????????????????????? ???# ### | | ????????????????????????????? < ## #???###?# | | ????????????????????????????# #?##????????# | | ?????????????????????????????## ????????????## | | ??????????????????????????????#??????????????# | | ?????????????????????????????????????????????# ## | | ?????????????????????????????????????????????####? | | ?????????????????????????" "?????????????????????? | | ???????????????????????? ?????????????????????? | | ???????????????????????? ?????????????????????? | | ???????????????????????? ????????????????????? | | ???????????????????????? ????????????????????? | | ????????????????????????# ###??????????????????? | | ????????????????????????# ##?????????????????? | | ????????????????????????# #?????????????????? | | ????????????????????????# #?????????????????? | | ??????????????#????#????# % #?????????????????? | | ??????????????# ### ???#% #?????????????????? | | ?????????????# ?## ##????????????????? | | ??????????????# ## % #????????????????? | | ???????????????# ## #????????????????? | | ?????????????????# ## ######?####??????? | | ??????????????????"""" "" ## ### #??????? | | ?????????????????? "" "" #??????? | | ????#?##????????????#### @ * ##??????? | | ????# # #??????????????#### &%&## ###???????? | | ????? ????????????????## != #####?????????? | | ??????# ????????????????## ### #????????????? | | ???????# $ ??????######??## " #?? #???????????? | | ???????## ##???? ???# """" #?? #???????????? | | ???????# ##### #?????# """" #?? #???????????? | | ??????### # #????? # """""#??" #???????????? | | ?????## #?????? # """"##?? #???????????? | | ?????# #?????? ##% ""#??? ##??????????? | | ???# ### ##????#""## "#??" #??????????? | | ??# # #####""#?## "#?? #??????????? | | #?## "" #??# "##? #??????????? | | #?## [##??# #?# #??????????? | | ??# ##???# ### #??????????? | | ## ### ???# # ##???### #??????????? | | ?#??? ???## ## ####### #??????????? | | ????##?????## ### ## #??????????# | | ????????????# ?# ##?######??# | | ??????????? ?## ## ### #### | | ?????????? ?### ## ## | | ?????????"""" ???####### | | ????????##"#" ???????### | | ???????????#" ???????# ### # | | ????????????" ???????# #?##### | +----------------------------------------------------+ Best States ------------- Heat Dissipation 25 Coolant Potential 50 Energy Generation 15 Energy Capacity 250 Matter Stores 300 Matter Capacity 300 Sight Range 16 Terrain Scan Density 10 Armor Coverage 800 Evasion (%) 44 Recoil Reduction 2 Item Schematics ----------------- Med. Storage Unit | -10/Materials | Hacked Robot Schematics ------------------ None Fabricated ------------ Nothing Repaired ---------- Nothing Studied --------- None Alien Tech Used ----------------- None Achievements -------------- None Challenges ------------ None Game ------ Seed ZioniteSuperdenseTrap Manual? 0 Play Time 00:28:01 Cumulative 729.8 hours Start 2026.07.15 @ 22:53:31 End 2026.07.15 @ 23:20:47 Sessions 1 Manual Loads 0 Difficulty Rogue Special Mode None Game No. 250 Rogue 246 Adventurer 4 Explorer 0 Win Type - Total 21 Types 9/2/6/0/0/0/2/2/0/0 Lore% 79 Gallery% 74 Achievement% 56 Wizard Run 0 Options --------- Layout 1 ASCII 0 Keyboard 0 Movement Arrows Keybinds 0 Fullscreen 1 Font 40/SmallcapsGlow Map View 50x40 Zoom Use 0% Tactical HUD 1 Map Filters NONE Filters NONE Steam 1 RUN: e01d6399-ed49-4adb-83bf-4ffd79ca099a